lending/lending_fUSD_20240219
["ID","MTS","AMOUNT","RATE_DAILY","PERIOD"]
[314490345,1708375998159,-2704.31,0.00049315,30]
[314490346,1708375998169,-500.0,0.00049315,30]
[314490347,1708375998179,-555.41,0.00049315,30]
[314490348,1708375998189,-1307.39,0.00049315,30]
[314490349,1708375998202,-10591.79,0.00049315,30]
[314490350,1708375998212,-3256.74,0.00049315,30]
[314490351,1708375998221,-906.19,0.00049315,30]
[314490352,1708375998231,-500.0,0.00049315,30]
[314490353,1708375998241,-1843.46,0.00049315,30]
[314490354,1708375998250,-500.0,0.00049315,30]
[314490355,1708375998259,-2160.68,0.00049315,30]
[314490356,1708375998269,-1427.99,0.00049315,30]
[314490357,1708375998278,-595.56,0.00049315,30]
[314490358,1708375998288,-538.66,0.00049315,30]
[314490359,1708375998300,-645.76,0.00049315,30]
[314490360,1708375998310,-2630.29,0.00049315,30]
[314490361,1708375998319,-688.24,0.00049315,30]
[314490362,1708375998329,-993.04,0.00049315,30]
[314490363,1708375998338,-1435.94,0.00049315,30]
[314490364,1708375998348,-1027.61,0.00049315,30]
[314490365,1708375998357,-10839.07,0.00049315,30]
[314490366,1708375998368,-1000.0,0.00049315,7]
[314490367,1708375998378,-500.0,0.00049315,30]
[314490368,1708375998387,-500.0,0.00049315,30]
[314490369,1708375998396,-2808.92,0.00049315,30]
[314490370,1708375998406,-1182.36,0.00049315,30]
[314490371,1708375998416,-500.0,0.00049315,30]
[314490372,1708375998426,-697.96,0.00049315,30]
[314490373,1708375998435,-500.0,0.00049315,30]
[314490374,1708375998445,-796.11,0.00049315,30]
[314490375,1708375998454,-500.0,0.00049315,30]
[314490376,1708375998464,-5101.05,0.00049315,30]
[314490377,1708375998473,-553.84,0.00049315,30]
[314490378,1708375998483,-3052.86,0.00049315,30]
[314490379,1708375998492,-1201.23,0.00049315,30]
[314490380,1708375998501,-1303.89,0.00049315,30]
[314490381,1708375998510,-500.0,0.00049315,30]
[314490382,1708375998519,-500.0,0.00049315,30]
[314490383,1708375998529,-581.61206489,0.00049315,30]
[314490384,1708375998538,-656.54,0.00049315,30]
[314490385,1708375998548,-3044.92,0.00049315,30]
[314490386,1708375998557,-2710.85,0.00049315,30]
[314490387,1708375998567,-571.63,0.00049315,30]
[314490388,1708375998576,-991.51,0.00049315,30]
[314490389,1708375998585,-1083.47,0.00049315,30]
[314490390,1708375998595,-4385.72,0.00049315,30]
[314490391,1708375998604,-500.0,0.00049315,30]
[314490392,1708375998614,-500.0,0.00049315,30]
[314490393,1708375998624,-500.0,0.00049315,30]
[314490394,1708375998634,-500.0,0.00049315,30]
[314490395,1708375998643,-3967.79,0.00049315,30]
[314490396,1708375998653,-587.09,0.00049315,30]
[314490397,1708375998662,-939.16,0.00049315,30]
[314490398,1708375998671,-10289.24,0.00049315,30]
[314490399,1708375998681,-2003.31,0.00049315,30]
[314490400,1708375998690,-990.49,0.00049315,30]
[314490401,1708375998700,-500.0,0.00049315,30]
[314490402,1708375998709,-500.0,0.00049315,30]
[314490403,1708375998719,-3009.13,0.00049315,30]
[314490404,1708375998728,-500.0,0.00049315,14]
[314490405,1708375998737,-9120.54,0.00049315,30]
[314490406,1708375998747,-5612.0,0.00049315,30]
[314490407,1708375998756,-3562.84,0.00049315,30]
[314490408,1708375998766,-500.0,0.00049315,30]
[314490409,1708375998775,-500.0,0.00049315,30]
[314490410,1708375998784,-3072.77,0.00049315,30]
[314490411,1708375998794,-2054.19,0.00049315,30]
[314490412,1708375998803,-1723.46,0.00049315,30]
[314490413,1708375998812,-500.0,0.00049315,30]
[314490414,1708375998822,-500.0,0.00049315,30]
[314490415,1708375998831,-1071.31,0.00049315,30]
[314490416,1708375998840,-545.97,0.00049315,30]
[314490417,1708375998849,-2309.28,0.00049315,30]
[314490418,1708375998858,-500.0,0.00049315,2]
[314490419,1708375998871,-1151.9,0.00049315,30]
[314490420,1708375998881,-1803.4,0.00049315,30]
[314490421,1708375998891,-500.0,0.00049315,30]
[314490422,1708375998900,-500.0,0.00049315,30]
[314490423,1708375998909,-500.0,0.00049315,30]
[314490424,1708375998919,-2704.83,0.00049315,30]
[314490425,1708375998928,-2872.4,0.00049315,30]
[314490426,1708375998938,-1886.18,0.00049315,30]
[314490427,1708375998947,-542.05,0.00049315,30]
[314490428,1708375998956,-520.83,0.00049315,30]
[314490429,1708375998966,-721.8,0.00049315,30]
[314490430,1708375998976,-500.0,0.00049315,30]
[314490431,1708375998985,-3755.12,0.00049315,30]
[314490432,1708375998995,-2288.52,0.00049315,30]
[314490433,1708375999005,-4422.39,0.00049315,30]
[314490434,1708375999015,-500.0,0.00049315,30]
[314490435,1708375999024,-500.0,0.00049315,30]
[314490436,1708375999034,-500.0,0.00049315,30]
[314490437,1708375999043,-3732.75,0.00049315,30]
[314490438,1708375999053,-4475.17,0.00049315,30]
[314490439,1708375999063,-500.87,0.00049315,30]
[314490440,1708375999072,-500.0,0.00049315,30]
[314490441,1708375999081,-500.0,0.00049315,30]
[314490442,1708375999091,-2396.12,0.00049315,30]
[314490443,1708375999101,-500.0,0.00049315,30]
[314490444,1708375999114,-708.6,0.00049315,30]
[314490445,1708375999125,-1041.64,0.00049315,30]
[314490446,1708375999136,-840.86,0.00049315,30]
[314490447,1708375999147,-500.0,0.00049315,30]
[314490448,1708375999156,-500.0,0.00049315,30]
[314490449,1708375999165,-2371.53,0.00049315,30]
[314490450,1708375999175,-535.6,0.00049315,30]
[314490451,1708375999184,-4038.36,0.00049315,30]
[314490452,1708375999194,-2295.56,0.00049315,30]
[314490453,1708375999204,-500.0,0.00049315,30]
[314490454,1708375999214,-658.5,0.00049315,30]
[314490455,1708375999223,-1050.6,0.00049315,30]
[314490456,1708375999232,-4457.1,0.00049315,30]
[314490457,1708375999242,-1214.7,0.00049315,30]
[314490458,1708375999251,-500.0,0.00049315,30]
[314490459,1708375999261,-500.0,0.00049315,30]
[314490460,1708375999271,-613.95,0.00049315,30]
[314490461,1708375999281,-3961.59,0.00049315,30]
[314490462,1708375999290,-2419.58,0.00049315,30]
[314490463,1708375999299,-768.13,0.00049315,30]
[314490464,1708375999308,-500.0,0.00049315,30]
[314490465,1708375999317,-500.0,0.00049315,30]
[314490466,1708375999327,-1553.73,0.00049315,30]
[314490467,1708375999336,-500.0,0.00049315,30]
[314490468,1708375999345,-912.83,0.00049315,30]
[314490469,1708375999354,-513.62,0.00049315,30]
[314490470,1708375999363,-1959.87,0.00049315,30]
[314490471,1708375999374,-685.61,0.00049315,30]
[314490472,1708375999383,-637.22,0.00049315,30]
[314490473,1708375999393,-3450.55,0.00049315,30]
[314490474,1708375999402,-1315.63,0.00049315,30]
[314490475,1708375999411,-1303.35,0.00049315,30]
[314490476,1708375999420,-591.77611847,0.00049315,30]
[314490477,1708375999430,-1018.49,0.00049315,30]
[314490478,1708375999439,-1826.87,0.00049315,30]
[314490479,1708375999449,-427.82302784,0.00049315,30]
[314490480,1708375999458,-2574.94,0.00049315,30]
[314490481,1708375999468,-1011.56,0.00049315,30]
[314490482,1708375999478,-1629.15,0.00049315,30]
[314490483,1708375999488,-1602.06,0.00049315,30]
[314490484,1708375999498,-2466.37,0.00049315,30]
[314490485,1708375999507,-500.0,0.00049315,30]
[314490486,1708375999518,-723.21,0.00049315,30]
[314490487,1708375999527,-166.66666667,0.00049315,120]
[314490488,1708375999535,-152.35,0.00049315,2]
[314490489,1708375999544,-150.0,0.00049315,2]
[314490490,1708375999555,-150.0,0.00049315,2]
[314490491,1708375999571,-150.0,0.00049315,2]
[314490492,1708375999587,-150.0,0.00049315,2]
[314490493,1708375999601,-150.0,0.00049315,2]
[314490494,1708375999616,-150.0,0.00049315,2]
[314490495,1708375999631,-150.0,0.00049315,2]
[314490496,1708375999646,-169.0,0.00049324,2]
[314490497,1708375999661,-150.0,0.00049324,9]
[314490498,1708375999676,-150.0,0.00049324,9]
[314490499,1708375999688,-165.78496256,0.00049329,30]
[314490500,1708375999702,-152.0,0.00049331,7]
[314490501,1708375999716,-188.0,0.00049381,2]
[314490502,1708375999730,-474.33573042,0.000494,10]
[314490503,1708375999745,-150.0,0.00049459,2]
[314490504,1708375999756,-298.0,0.000495,2]
[314490505,1708375999772,-157957.15326797,0.000495,120]
[314490506,1708375999786,-783.0,0.000495,2]
[314490507,1708375999800,-35035.21540672,0.000495,30]
[314490508,1708375999811,-33643.76944361,0.000495,60]
[314490509,1708375999826,-396.0,0.000495,39]
[314490510,1708375999840,-211.82443069,0.0004951,30]
[314490511,1708375999857,-61370.126265,0.00049534,120]
[314490512,1708375999873,-241.88879428,0.00049563,30]
[314490513,1708375999887,-547.48,0.00049564,120]
[314490514,1708375999898,-200000.0,0.00049583,120]
[314490515,1708375999910,-613.40047661,0.00049589,30]
[314490516,1708375999924,-769.6,0.00049589,30]
[314490517,1708375999936,-658.14,0.00049589,30]
[314490518,1708375999950,-500.0,0.00049589,30]
[314490519,1708375999961,-727.1,0.00049589,30]
[314490520,1708375999978,-500.0,0.00049589,30]
[314490521,1708375999990,-611.49,0.00049589,30]
[314490522,1708376000002,-500.0,0.00049589,30]
[314490523,1708376000014,-500.0,0.00049589,30]
[314490524,1708376000026,-500.0,0.00049589,30]
[314490525,1708376000039,-500.0,0.00049589,30]
[314490526,1708376000051,-500.0,0.00049589,30]
[314490527,1708376000063,-500.0,0.00049589,30]
[314490528,1708376000075,-642.69,0.00049589,30]
[314490529,1708376000090,-502.75,0.00049589,30]
[314490530,1708376000104,-680.66,0.00049589,30]
[314490531,1708376000122,-500.0,0.00049589,30]
[314490532,1708376000135,-500.0,0.00049589,30]
[314490533,1708376000150,-534.7,0.00049589,30]
[314490534,1708376000163,-500.0,0.00049589,30]
[314490535,1708376000176,-673.61,0.00049589,30]
[314490536,1708376000191,-500.0,0.00049589,30]
[314490537,1708376000203,-500.0,0.00049589,30]
[314490538,1708376000216,-500.0,0.00049589,30]
[314490539,1708376000228,-500.0,0.00049589,30]
[314490540,1708376000241,-500.0,0.00049589,30]
[314490541,1708376000253,-546.31,0.00049589,30]
[314490542,1708376000265,-500.0,0.00049589,30]
[314490543,1708376000277,-500.0,0.00049589,30]
[314490544,1708376000290,-700.86,0.00049589,30]
[314490545,1708376000302,-561.33328422,0.00049589,30]
[314490546,1708376000315,-515.56,0.00049589,30]
[314490547,1708376000328,-150.0,0.00049589,30]
[314490548,1708376000341,-500.0,0.00049589,30]
[314490549,1708376000354,-500.0,0.00049589,30]
[314490550,1708376000367,-683.1,0.00049589,30]
[314490551,1708376000381,-500.0,0.00049589,30]
[314490552,1708376000394,-500.0,0.00049589,30]
[314490553,1708376000406,-773.54,0.00049589,30]
[314490554,1708376000419,-500.0,0.00049589,30]
[314490555,1708376000431,-500.0,0.00049589,30]
[314490556,1708376000444,-635.49,0.00049589,30]
[314490557,1708376000457,-500.0,0.00049589,30]
[314490558,1708376000470,-605.14,0.00049589,30]
[314490559,1708376000482,-500.0,0.00049589,30]
[314490560,1708376000494,-500.0,0.00049589,30]
[314490561,1708376000506,-521.73,0.00049589,30]
[314490562,1708376000518,-500.0,0.00049589,30]
[314490563,1708376000530,-500.0,0.00049589,30]
[314490564,1708376000544,-500.0,0.00049589,30]
[314490565,1708376000558,-500.0,0.00049589,30]
[314490566,1708376000571,-551.15,0.00049589,30]
[314490567,1708376000588,-500.0,0.00049589,30]
[314490568,1708376000602,-500.0,0.00049589,30]
[314490569,1708376000616,-500.0,0.00049589,30]
[314490570,1708376000630,-687.19,0.00049589,30]
[314490571,1708376000643,-606.33,0.00049589,30]
[314490572,1708376000657,-500.0,0.00049589,30]
[314490573,1708376000670,-796.73,0.00049589,30]
[314490574,1708376000683,-726.97,0.00049589,30]
[314490575,1708376000696,-500.0,0.00049589,30]
[314490576,1708376000710,-500.0,0.00049589,30]
[314490577,1708376000723,-281.31822638,0.00049589,30]
[314490578,1708376000735,-500.0,0.00049589,30]
[314490579,1708376000748,-500.0,0.00049589,30]
[314490580,1708376000760,-646.91,0.00049589,30]
[314490581,1708376000773,-834.56,0.00049589,30]
[314490582,1708376000785,-500.0,0.00049589,30]
[314490583,1708376000798,-664.56,0.00049589,30]
[314490584,1708376000810,-500.0,0.00049589,30]
[314490585,1708376000824,-500.0,0.00049589,30]
[314490586,1708376000837,-500.0,0.00049589,30]
[314490587,1708376000852,-500.0,0.00049589,30]
[314490588,1708376000864,-500.0,0.00049589,30]
[314490589,1708376000878,-500.0,0.00049589,30]
[314490590,1708376000891,-500.0,0.00049589,30]
[314490591,1708376000903,-500.0,0.00049589,30]
[314490592,1708376000915,-500.0,0.00049589,30]
[314490593,1708376000928,-500.0,0.00049589,30]
[314490594,1708376000940,-558.22,0.00049589,30]
[314490595,1708376000952,-738.02,0.00049589,30]
[314490596,1708376000965,-500.0,0.00049589,30]
[314490597,1708376000977,-534.66,0.00049589,30]
[314490598,1708376000990,-1457.69,0.00049589,30]
[314490599,1708376001004,-500.0,0.00049589,30]
[314490600,1708376001016,-500.0,0.00049589,30]
[314490601,1708376001029,-500.0,0.00049589,30]
[314490602,1708376001042,-907.08,0.00049589,30]
[314490603,1708376001054,-500.0,0.00049589,30]
[314490604,1708376001066,-500.0,0.00049589,30]
[314490605,1708376001078,-1101.19,0.00049589,30]
[314490606,1708376001092,-500.0,0.00049589,30]
[314490607,1708376001104,-500.0,0.00049589,30]
[314490608,1708376001119,-724.1,0.00049589,30]
[314490609,1708376001130,-500.0,0.00049589,30]
[314490610,1708376001142,-500.0,0.00049589,30]
[314490611,1708376001153,-584.96,0.00049589,30]
[314490612,1708376001165,-500.0,0.00049589,30]
[314490613,1708376001177,-794.09,0.00049589,30]
[314490614,1708376001189,-417.90408826,0.00049589,30]
[314490615,1708376001203,-980.76,0.00049589,30]
[314490616,1708376001215,-596.62,0.00049589,30]
[314490617,1708376001226,-725.56,0.00049589,30]
[314490618,1708376001239,-736.53,0.00049589,30]
[314490619,1708376001250,-681.49,0.00049589,30]
[314490620,1708376001262,-529.85,0.00049589,30]
[314490621,1708376001273,-611.77,0.00049589,30]
[314490622,1708376001285,-500.0,0.00049589,30]
[314490623,1708376001298,-593.46,0.00049589,30]
[314490624,1708376001309,-623.19,0.00049589,30]
[314490625,1708376001321,-767.38,0.00049589,30]
[314490626,1708376001332,-1194.83,0.00049589,30]
[314490627,1708376001344,-658.06,0.00049589,30]
[314490628,1708376001357,-500.0,0.00049589,30]
[314490629,1708376001368,-858.95,0.00049589,30]
[314490630,1708376001379,-500.0,0.00049589,30]
[314490631,1708376001391,-500.0,0.00049589,30]
[314490632,1708376001403,-1684.76,0.00049589,30]
[314490633,1708376001414,-500.0,0.00049589,30]
[314490634,1708376001426,-1412.31,0.00049589,30]
[314490635,1708376001437,-500.0,0.00049589,30]
[314490636,1708376001449,-2047.80103513,0.00049589,30]
[314490637,1708376001461,-500.0,0.00049589,30]
[314490638,1708376001472,-1438.64,0.00049589,30]
[314490639,1708376001485,-525.84,0.00049589,30]
[314490640,1708376001497,-522.35460239,0.00049589,30]
[314490641,1708376001509,-500.0,0.00049589,30]
[314490642,1708376001521,-171.37,0.00049589,30]
[314490643,1708376001533,-519.41,0.00049589,30]
[314490644,1708376001545,-500.0,0.00049589,30]
[314490645,1708376001557,-500.0,0.00049589,30]
[314490646,1708376001570,-372.35,0.00049589,30]
[314490647,1708376001582,-1430.29,0.00049589,30]
[314490648,1708376001595,-500.0,0.00049589,30]
[314490649,1708376001608,-500.0,0.00049589,30]
[314490650,1708376001619,-500.0,0.00049589,30]
[314490651,1708376001630,-500.0,0.00049589,30]
[314490652,1708376001642,-1019.92,0.00049589,30]
[314490653,1708376001652,-1105.45,0.00049589,30]
[314490654,1708376001664,-500.0,0.00049589,30]
[314490655,1708376001676,-500.0,0.00049589,30]
[314490656,1708376001687,-592.36,0.00049589,30]
[314490657,1708376001699,-500.0,0.00049589,30]
[314490658,1708376001710,-500.0,0.00049589,30]
[314490659,1708376001720,-1079.31,0.00049589,30]
[314490660,1708376001731,-500.0,0.00049589,30]
[314490661,1708376001742,-500.0,0.00049589,30]
[314490662,1708376001755,-1238.71,0.00049589,30]
[314490663,1708376001766,-500.0,0.00049589,30]
[314490664,1708376001777,-1695.98,0.00049589,2]
[314490665,1708376001789,-512.64,0.00049589,30]
[314490666,1708376001801,-270.65547998,0.00049589,30]
[314490667,1708376001811,-500.0,0.00049589,30]
[314490668,1708376001823,-626.83,0.00049589,30]
[314490669,1708376001835,-309.08,0.00049589,30]
[314490670,1708376001846,-1225.04,0.00049589,30]
[314490671,1708376001858,-782.42,0.00049589,30]
[314490672,1708376001869,-500.0,0.00049589,2]
[314490673,1708376001881,-1117.49,0.00049589,30]
[314490674,1708376001892,-540.29,0.00049589,30]
[314490675,1708376001904,-681.37,0.00049589,30]
[314490676,1708376001915,-500.0,0.00049589,30]
[314490677,1708376001926,-1341.5,0.00049589,30]
[314490678,1708376001937,-834.82,0.00049589,30]
[314490679,1708376001949,-500.0,0.00049589,30]
[314490680,1708376001960,-619.71232717,0.00049589,30]
[314490681,1708376001971,-526.87,0.00049589,30]
[314490682,1708376001982,-567.2,0.00049589,30]
[314490683,1708376001994,-500.0,0.00049589,30]
[314490684,1708376002005,-500.0,0.00049589,30]
[314490685,1708376002016,-500.0,0.00049589,30]
[314490686,1708376002027,-500.0,0.00049589,30]
[314490687,1708376002038,-500.0,0.00049589,30]
[314490688,1708376002050,-1134.32,0.00049589,30]
[314490689,1708376002062,-826.41,0.00049589,30]
[314490690,1708376002074,-1378.15,0.00049589,30]
[314490691,1708376002085,-1170.65,0.00049589,30]
[314490692,1708376002099,-1602.18,0.00049589,30]
[314490693,1708376002114,-500.0,0.00049589,30]
[314490694,1708376002126,-910.93,0.00049589,30]
[314490695,1708376002138,-730.4,0.00049589,30]
[314490696,1708376002151,-1022.68,0.00049589,30]
[314490697,1708376002163,-619.27,0.00049589,30]
[314490698,1708376002174,-500.0,0.00049589,30]
[314490699,1708376002186,-1234.7,0.00049589,30]
[314490700,1708376002198,-380.75115483,0.00049589,30]
[314490701,1708376002211,-1015.68,0.00049589,30]
[314490702,1708376002222,-500.0,0.00049589,30]
[314490703,1708376002234,-599.06748811,0.00049589,30]
[314490704,1708376002245,-500.0,0.00049589,30]
[314490705,1708376002256,-640.09,0.00049589,30]
[314490706,1708376002267,-1097.36,0.00049589,30]
[314490707,1708376002279,-500.0,0.00049589,30]
[314490708,1708376002290,-800.0,0.00049589,3]
[314490709,1708376002301,-500.0,0.00049589,30]
[314490710,1708376002312,-586.6,0.00049589,30]
[314490711,1708376002323,-500.0,0.00049589,30]
[314490712,1708376002336,-500.0,0.00049589,30]
[314490713,1708376002348,-989.09,0.00049589,30]
[314490714,1708376002359,-500.0,0.00049589,30]
[314490715,1708376002370,-1358.39,0.00049589,30]
[314490716,1708376002382,-500.0,0.00049589,30]
[314490717,1708376002393,-546.18,0.00049589,30]
[314490718,1708376002405,-500.0,0.00049589,30]
[314490719,1708376002417,-1072.42,0.00049589,30]
[314490720,1708376002429,-500.0,0.00049589,30]
[314490721,1708376002442,-1139.87,0.00049589,30]
[314490722,1708376002454,-500.0,0.00049589,30]
[314490723,1708376002465,-653.92,0.00049589,30]
[314490724,1708376002478,-500.0,0.00049589,30]
[314490725,1708376002490,-1319.89,0.00049589,30]
[314490726,1708376002502,-1138.49,0.00049589,30]
[314490727,1708376002513,-500.0,0.00049589,30]
[314490728,1708376002524,-500.0,0.00049589,30]
[314490729,1708376002535,-500.0,0.00049589,30]
[314490730,1708376002547,-821.67,0.00049589,30]
[314490731,1708376002559,-546.51,0.00049589,30]
[314490732,1708376002570,-500.0,0.00049589,30]
[314490733,1708376002581,-701.86,0.00049589,30]
[314490734,1708376002592,-500.0,0.00049589,30]
[314490735,1708376002603,-500.0,0.00049589,30]
[314490736,1708376002614,-555.68,0.00049589,30]
[314490737,1708376002627,-791.29,0.00049589,30]
[314490738,1708376002638,-500.0,0.00049589,30]
[314490739,1708376002650,-517.1,0.00049589,30]
[314490740,1708376002661,-500.0,0.00049589,30]
[314490741,1708376002673,-1096.08,0.00049589,30]
[314490742,1708376002685,-817.72,0.00049589,30]
[314490743,1708376002696,-476.33043262,0.00049589,30]
[314490744,1708376002707,-1231.27,0.00049589,30]
[314490745,1708376002719,-882.89,0.00049589,30]
[314490746,1708376002730,-500.0,0.00049589,30]
[314490747,1708376002741,-633.3,0.00049589,30]
[314490748,1708376002752,-500.0,0.00049589,30]
[314490749,1708376002764,-1075.43,0.00049589,30]
[314490750,1708376002775,-1081.85,0.00049589,30]
[314490751,1708376002786,-500.0,0.00049589,30]
[314490752,1708376002798,-569.42,0.00049589,30]
[314490753,1708376002809,-1092.13,0.00049589,30]
[314490754,1708376002821,-500.0,0.00049589,30]
[314490755,1708376002832,-537.66,0.00049589,30]
[314490756,1708376002843,-500.0,0.00049589,30]
[314490757,1708376002855,-500.0,0.00049589,30]
[314490758,1708376002866,-686.43,0.00049589,30]
[314490759,1708376002879,-988.65,0.00049589,30]
[314490760,1708376002890,-500.0,0.00049589,30]
[314490761,1708376002901,-1169.05,0.00049589,30]
[314490762,1708376002912,-696.77,0.00049589,30]
[314490763,1708376002923,-1548.35,0.00049589,30]
[314490764,1708376002934,-500.0,0.00049589,30]
[314490765,1708376002945,-823.36,0.00049589,30]
[314490766,1708376002956,-879.35,0.00049589,30]
[314490767,1708376002967,-500.0,0.00049589,30]
[314490768,1708376002978,-971.92,0.00049589,30]
[314490769,1708376002989,-1247.38,0.00049589,30]
[314490770,1708376003001,-1398.42,0.00049589,30]
[314490771,1708376003012,-701.34,0.00049589,30]
[314490772,1708376003023,-500.0,0.00049589,30]
[314490773,1708376003035,-926.08,0.00049589,30]
[314490774,1708376003046,-1439.25,0.00049589,30]
[314490775,1708376003057,-730.11,0.00049589,30]
[314490776,1708376003068,-1058.32,0.00049589,30]
[314490777,1708376003079,-642.65,0.00049589,30]
[314490778,1708376003091,-909.21,0.00049589,30]
[314490779,1708376003102,-960.6,0.00049589,30]
[314490780,1708376003114,-500.0,0.00049589,30]
[314490781,1708376003128,-529.3,0.00049589,30]
[314490782,1708376003139,-500.0,0.00049589,30]
[314490783,1708376003151,-500.0,0.00049589,30]
[314490784,1708376004151,-747.42,0.00049589,30]
[314490785,1708376004161,-830.98,0.00049589,30]
[314490786,1708376004171,-1206.67,0.00049589,30]
[314490787,1708376004180,-500.0,0.00049589,30]
[314490788,1708376004190,-1598.54,0.00049589,30]
[314490789,1708376004200,-642.68,0.00049589,30]
[314490790,1708376004209,-500.0,0.00049589,30]
[314490791,1708376004219,-542.13,0.00049589,30]
[314490792,1708376004228,-921.92,0.00049589,30]
[314490793,1708376004237,-751.64,0.00049589,30]
[314490794,1708376004246,-905.09,0.00049589,30]
[314490795,1708376004256,-752.52,0.00049589,30]
[314490796,1708376004266,-500.0,0.00049589,30]
[314490797,1708376004275,-811.75,0.00049589,30]
[314490798,1708376004284,-565.99,0.00049589,30]
[314490799,1708376004294,-1432.15,0.00049589,30]
[314490800,1708376004303,-694.07,0.00049589,30]
[314490801,1708376004312,-500.0,0.00049589,30]
[314490802,1708376004321,-1105.31,0.00049589,30]
[314490803,1708376004331,-724.85,0.00049589,30]
[314490804,1708376004340,-546.64652793,0.00049589,30]
[314490805,1708376004350,-1212.7,0.00049589,30]
[314490806,1708376004359,-892.85,0.00049589,30]
[314490807,1708376004369,-500.0,0.00049589,30]
[314490808,1708376004378,-869.25,0.00049589,30]
[314490809,1708376004388,-500.0,0.00049589,30]
[314490810,1708376004398,-500.0,0.00049589,30]
[314490811,1708376004408,-500.0,0.00049589,30]
[314490812,1708376004418,-567.89,0.00049589,30]
[314490813,1708376004427,-1168.13,0.00049589,30]
[314490814,1708376004437,-1054.03,0.00049589,30]
[314490815,1708376004447,-810.5,0.00049589,30]
[314490816,1708376004457,-500.0,0.00049589,30]
[314490817,1708376004467,-500.0,0.00049589,30]
[314490818,1708376004477,-822.31,0.00049589,30]
[314490819,1708376004486,-500.0,0.00049589,30]
[314490820,1708376004496,-1261.76,0.00049589,30]
[314490821,1708376004506,-500.0,0.00049589,30]
[314490822,1708376004515,-743.59,0.00049589,30]
[314490823,1708376004524,-929.31,0.00049589,30]
[314490824,1708376004534,-500.0,0.00049589,30]
[314490825,1708376004544,-516.11,0.00049589,30]
[314490826,1708376004554,-1169.76,0.00049589,30]
[314490827,1708376004563,-655.79,0.00049589,30]
[314490828,1708376004574,-500.0,0.00049589,30]
[314490829,1708376004583,-1155.7,0.00049589,30]
[314490830,1708376004593,-500.0,0.00049589,30]
[314490831,1708376004603,-1079.22,0.00049589,30]
[314490832,1708376004613,-531.84,0.00049589,30]
[314490833,1708376004623,-1189.04,0.00049589,30]
[314490834,1708376004633,-817.13,0.00049589,30]
[314490835,1708376004644,-500.0,0.00049589,30]
[314490836,1708376004654,-500.0,0.00049589,30]
[314490837,1708376004665,-954.22,0.00049589,30]
[314490838,1708376004675,-500.0,0.00049589,30]
[314490839,1708376004685,-1014.4,0.00049589,30]
[314490840,1708376004695,-1091.86,0.00049589,30]
[314490841,1708376004704,-623.17,0.00049589,30]
[314490842,1708376004714,-976.49,0.00049589,30]
[314490843,1708376004723,-500.0,0.00049589,30]
[314490844,1708376004732,-500.0,0.00049589,30]